fUSD/lending_fUSD_20240518
["ID","MTS","AMOUNT","RATE_DAILY","PERIOD"]
[327371737,1716027045401,-500.0,0.0003589,9]
[327371738,1716027045411,-500.0,0.0003589,9]
[327371739,1716027045420,-500.0,0.0003589,9]
[327371740,1716027045431,-1024.88,0.0003589,9]
[327371741,1716027045441,-500.0,0.0003589,9]
[327371742,1716027045449,-500.0,0.0003589,9]
[327371743,1716027045458,-1245.85,0.0003589,9]
[327371744,1716027045468,-511.11256447,0.0003589,9]
[327371745,1716027045478,-500.0,0.0003589,9]
[327371746,1716027045488,-5514.99,0.0003589,9]
[327371747,1716027045497,-643.52,0.0003589,9]
[327371748,1716027045507,-500.0,0.0003589,9]
[327371749,1716027045517,-546.42,0.0003589,9]
[327371750,1716027045527,-500.0,0.0003589,9]
[327371751,1716027045536,-500.0,0.0003589,9]
[327371752,1716027045545,-500.0,0.0003589,9]
[327371753,1716027045555,-915.4,0.0003589,9]
[327371754,1716027045564,-616.72,0.0003589,9]
[327371755,1716027045574,-4463.14,0.0003589,9]
[327371756,1716027045583,-500.0,0.0003589,9]
[327371757,1716027045593,-500.0,0.0003589,9]
[327371758,1716027045603,-731.29,0.0003589,9]
[327371759,1716027045613,-500.0,0.0003589,9]
[327371760,1716027045623,-500.0,0.0003589,9]
[327371761,1716027045632,-500.0,0.0003589,9]
[327371762,1716027045642,-500.0,0.0003589,9]
[327371763,1716027045651,-500.0,0.0003589,9]
[327371764,1716027045661,-500.0,0.0003589,9]
[327371765,1716027045670,-500.0,0.0003589,9]
[327371766,1716027045680,-500.0,0.0003589,9]
[327371767,1716027045689,-500.0,0.0003589,9]
[327371768,1716027045698,-500.0,0.0003589,9]
[327371769,1716027045707,-500.0,0.0003589,9]
[327371770,1716027045717,-500.0,0.0003589,9]
[327371771,1716027045726,-500.0,0.0003589,9]
[327371772,1716027045735,-500.0,0.0003589,9]
[327371773,1716027045745,-500.0,0.0003589,9]
[327371774,1716027045754,-500.0,0.0003589,9]
[327371775,1716027045764,-1370.65,0.0003589,9]
[327371776,1716027045773,-500.0,0.0003589,9]
[327371777,1716027045783,-2258.02,0.0003589,9]
[327371778,1716027045792,-500.0,0.0003589,9]
[327371779,1716027045801,-722.23,0.0003589,9]
[327371780,1716027045812,-500.0,0.0003589,9]
[327371781,1716027045822,-500.0,0.0003589,9]
[327371782,1716027045832,-500.0,0.0003589,9]
[327371783,1716027045842,-522.73,0.0003589,9]
[327371784,1716027045851,-500.0,0.0003589,9]
[327371785,1716027045861,-500.0,0.0003589,9]
[327371786,1716027045871,-500.0,0.0003589,9]
[327371787,1716027045880,-512.22923886,0.0003589,9]
[327371788,1716027045890,-500.0,0.0003589,9]
[327371789,1716027045899,-500.0,0.0003589,9]
[327371790,1716027045909,-500.0,0.0003589,9]
[327371791,1716027045919,-500.0,0.0003589,9]
[327371792,1716027045929,-500.0,0.0003589,9]
[327371793,1716027045938,-500.0,0.0003589,9]
[327371794,1716027045947,-500.0,0.0003589,9]
[327371795,1716027045957,-568.61,0.0003589,9]
[327371796,1716027045966,-500.0,0.0003589,9]
[327371797,1716027045975,-500.0,0.0003589,9]
[327371798,1716027045984,-500.0,0.0003589,9]
[327371799,1716027045994,-695.23,0.0003589,9]
[327371800,1716027046003,-500.0,0.0003589,9]
[327371801,1716027046012,-500.0,0.0003589,9]
[327371802,1716027046022,-500.0,0.0003589,9]
[327371803,1716027046031,-1052.06,0.0003589,9]
[327371804,1716027046040,-500.0,0.0003589,9]
[327371805,1716027046049,-500.0,0.0003589,9]
[327371806,1716027046059,-533.61,0.0003589,9]
[327371807,1716027046068,-500.0,0.0003589,9]
[327371808,1716027046077,-500.0,0.0003589,9]
[327371809,1716027046091,-500.0,0.0003589,9]
[327371810,1716027046100,-534.98428551,0.0003589,9]
[327371811,1716027046110,-500.0,0.0003589,9]
[327371812,1716027046119,-506.38519025,0.0003589,9]
[327371813,1716027046130,-500.0,0.0003589,9]
[327371814,1716027046139,-783.35,0.0003589,9]
[327371815,1716027046148,-500.0,0.0003589,9]
[327371816,1716027046158,-690.29,0.0003589,9]
[327371817,1716027046169,-525.98,0.0003589,9]
[327371819,1716027046179,-500.0,0.0003589,9]
[327371821,1716027046188,-500.0,0.0003589,9]
[327371822,1716027046197,-500.0,0.0003589,9]
[327371823,1716027046207,-629.44,0.0003589,9]
[327371824,1716027046216,-500.0,0.0003589,9]
[327371825,1716027046225,-500.0,0.0003589,9]
[327371826,1716027046234,-500.0,0.0003589,9]
[327371827,1716027046243,-500.0,0.0003589,9]
[327371828,1716027046252,-500.0,0.0003589,9]
[327371829,1716027046262,-934.8,0.0003589,9]
[327371830,1716027046270,-500.0,0.0003589,9]
[327371831,1716027046280,-503.37722404,0.0003589,9]
[327371832,1716027046289,-500.0,0.0003589,9]
[327371833,1716027046298,-500.0,0.0003589,9]
[327371834,1716027046308,-2042.79,0.0003589,9]
[327371835,1716027046318,-690.88,0.0003589,9]
[327371836,1716027046327,-500.0,0.0003589,9]
[327371837,1716027046337,-514.89,0.0003589,9]
[327371838,1716027046347,-500.0,0.0003589,9]
[327371839,1716027046356,-500.0,0.0003589,9]
[327371840,1716027046366,-1319.08,0.0003589,9]
[327371841,1716027046592,-500.0,0.0003589,9]
[327371842,1716027046602,-500.0,0.0003589,9]
[327371843,1716027046611,-500.0,0.0003589,9]
[327371844,1716027046621,-500.0,0.0003589,9]
[327371845,1716027046630,-500.0,0.0003589,9]
[327371846,1716027046639,-505.10912915,0.0003589,9]
[327371847,1716027046648,-500.0,0.0003589,9]
[327371848,1716027046658,-500.0,0.0003589,9]
[327371849,1716027046667,-546.09,0.0003589,9]
[327371850,1716027046677,-500.0,0.0003589,9]
[327371851,1716027046686,-500.0,0.0003589,9]
[327371852,1716027046695,-3803.72,0.0003589,9]
[327371853,1716027046705,-500.0,0.0003589,9]
[327371854,1716027046715,-593.45,0.0003589,9]
[327371855,1716027046724,-500.0,0.0003589,9]
[327371856,1716027046734,-797.77,0.0003589,9]
[327371857,1716027046743,-500.0,0.0003589,9]
[327371858,1716027046753,-514.45854672,0.0003589,9]
[327371859,1716027046763,-2284.56,0.0003589,9]
[327371860,1716027046772,-500.0,0.0003589,9]
[327371861,1716027046782,-500.0,0.0003589,9]
[327371862,1716027046791,-500.0,0.0003589,9]
[327371863,1716027046801,-538.34,0.0003589,9]
[327371864,1716027046810,-500.0,0.0003589,9]
[327371865,1716027046819,-827.64,0.0003589,9]
[327371866,1716027046829,-500.0,0.0003589,9]
[327371867,1716027046839,-2188.52,0.0003589,9]
[327371868,1716027046849,-500.0,0.0003589,9]
[327371869,1716027046858,-832.88,0.0003589,9]
[327371870,1716027046867,-500.0,0.0003589,9]
[327371871,1716027046877,-815.72,0.0003589,9]
[327371872,1716027046887,-796.82,0.0003589,9]
[327371873,1716027046896,-500.0,0.0003589,9]
[327371874,1716027046905,-500.0,0.0003589,9]
[327371875,1716027046914,-500.0,0.0003589,9]
[327371876,1716027046924,-500.0,0.0003589,9]
[327371877,1716027046935,-500.0,0.0003589,9]
[327371878,1716027046945,-500.0,0.0003589,9]
[327371879,1716027046954,-500.0,0.0003589,9]
[327371880,1716027046964,-500.0,0.0003589,9]
[327371881,1716027046973,-752.83,0.0003589,9]
[327371882,1716027046982,-500.0,0.0003589,9]
[327371883,1716027046991,-864.81,0.0003589,9]
[327371884,1716027047001,-1041.01,0.0003589,9]
[327371885,1716027047010,-500.0,0.0003589,9]
[327371886,1716027047020,-500.0,0.0003589,9]
[327371887,1716027047029,-500.0,0.0003589,9]
[327371888,1716027047038,-1424.33,0.0003589,9]
[327371889,1716027047047,-500.0,0.0003589,9]
[327371890,1716027047057,-500.0,0.0003589,9]
[327371891,1716027047066,-500.0,0.0003589,9]
[327371892,1716027047075,-500.0,0.0003589,9]
[327371893,1716027047087,-500.0,0.0003589,9]
[327371894,1716027047097,-1362.23,0.0003589,9]
[327371895,1716027047106,-500.0,0.0003589,9]
[327371896,1716027047116,-500.0,0.0003589,9]
[327371897,1716027047125,-500.0,0.0003589,9]
[327371898,1716027047136,-939.57,0.0003589,9]
[327371899,1716027047145,-1087.06,0.0003589,9]
[327371900,1716027047155,-500.0,0.0003589,9]
[327371901,1716027047166,-500.0,0.0003589,9]
[327371902,1716027047176,-500.0,0.0003589,9]
[327371903,1716027047186,-500.0,0.0003589,9]
[327371904,1716027047195,-500.0,0.0003589,9]
[327371905,1716027047204,-696.54,0.0003589,9]
[327371906,1716027047214,-1289.9,0.0003589,9]
[327371907,1716027047223,-500.0,0.0003589,9]
[327371908,1716027047232,-3041.74,0.0003589,9]
[327371909,1716027047242,-559.66,0.0003589,9]
[327371910,1716027047251,-825.26,0.0003589,9]
[327371911,1716027047260,-500.0,0.0003589,9]
[327371912,1716027047270,-500.0,0.0003589,9]
[327371913,1716027047279,-500.0,0.0003589,9]
[327371914,1716027047289,-759.62,0.0003589,9]
[327371915,1716027047299,-500.0,0.0003589,9]
[327371916,1716027047308,-629.52,0.0003589,9]
[327371917,1716027047318,-534.49,0.0003589,9]
[327371918,1716027047327,-570.27,0.0003589,9]
[327371919,1716027047336,-500.0,0.0003589,9]
[327371920,1716027047345,-500.0,0.0003589,9]
[327371921,1716027047355,-500.0,0.0003589,9]
[327371922,1716027047364,-500.0,0.0003589,9]
[327371923,1716027047374,-643.7171414,0.0003589,9]
[327371924,1716027047383,-500.0,0.0003589,9]
[327371925,1716027047392,-697.12,0.0003589,9]
[327371926,1716027047401,-912.9,0.0003589,9]
[327371927,1716027047410,-549.38,0.0003589,9]
[327371928,1716027047420,-500.0,0.0003589,9]
[327371929,1716027047431,-500.0,0.0003589,9]
[327371930,1716027047440,-500.0,0.0003589,9]
[327371931,1716027047449,-500.0,0.0003589,9]
[327371932,1716027047459,-500.0,0.0003589,9]
[327371933,1716027047468,-4223.91,0.0003589,9]
[327371934,1716027047477,-1065.59,0.0003589,9]
[327371935,1716027047487,-631.5,0.0003589,9]
[327371936,1716027047496,-545.68,0.0003589,9]
[327371937,1716027047505,-500.0,0.0003589,9]
[327371938,1716027047514,-500.0,0.0003589,9]
[327371939,1716027047523,-500.0,0.0003589,9]
[327371940,1716027047533,-513.77927994,0.0003589,2]
[327371941,1716027047542,-500.0,0.0003589,9]
[327371942,1716027047551,-500.0,0.0003589,9]
[327371943,1716027047561,-610.38,0.0003589,9]
[327371944,1716027047571,-500.0,0.0003589,9]
[327371945,1716027047580,-3746.55,0.0003589,9]
[327371946,1716027047589,-838.53,0.0003589,9]
[327371947,1716027047598,-500.0,0.0003589,9]
[327371948,1716027047608,-500.0,0.0003589,9]
[327371949,1716027047617,-500.0,0.0003589,9]
[327371950,1716027047627,-500.0,0.0003589,9]
[327371951,1716027047636,-584.1,0.0003589,9]
[327371952,1716027047645,-500.0,0.0003589,9]
[327371953,1716027047656,-500.0,0.0003589,9]
[327371954,1716027047665,-732.68,0.0003589,9]
[327371955,1716027047675,-4471.01,0.0003589,9]
[327371956,1716027047685,-1692.03,0.0003589,9]
[327371957,1716027047694,-500.0,0.0003589,9]
[327371958,1716027047703,-1112.92,0.0003589,9]
[327371959,1716027047713,-500.0,0.0003589,9]
[327371960,1716027047722,-1011.63247684,0.0003589,9]
[327371961,1716027047732,-500.0,0.0003589,9]
[327371962,1716027047741,-500.0,0.0003589,9]
[327371963,1716027047750,-500.0,0.0003589,9]
[327371964,1716027047759,-500.0,0.0003589,9]
[327371965,1716027047768,-500.0,0.0003589,9]
[327371966,1716027047780,-542.74,0.0003589,9]
[327371967,1716027047789,-500.0,0.0003589,9]
[327371968,1716027047798,-612.12,0.0003589,9]
[327371969,1716027047809,-1152.06,0.00035899,9]
[327371970,1716027047819,-1152.06,0.00035899,9]
[327371971,1716027047828,-410147.8244648,0.000359,2]
[327371972,1716027047837,-3700.0,0.000359,13]
[327371973,1716027047847,-151.0,0.000359,7]
[327371974,1716027047856,-246.59966,0.000359,7]
[327371975,1716027047866,-246.59966,0.000359,7]
[327371976,1716027047876,-151.0,0.000359,7]
[327371977,1716027047885,-151.0,0.000359,7]
[327371978,1716027047894,-151.0,0.000359,7]
[327371979,1716027047903,-151.0,0.000359,7]
[327371980,1716027047912,-447.05021,0.000359,7]
[327371981,1716027047921,-151.0,0.000359,7]
[327371982,1716027047931,-447.05021,0.000359,7]
[327371983,1716027047939,-151.0,0.000359,7]
[327371984,1716027047948,-422.753091,0.000359,7]
[327371985,1716027047957,-422.753091,0.000359,7]
[327371986,1716027047967,-251.11341,0.000359,7]
[327371987,1716027047978,-251.11341,0.000359,7]
[327371988,1716027047987,-423.524968,0.000359,7]
[327371989,1716027047997,-1381.199649,0.000359,7]
[327371990,1716027048006,-423.524968,0.000359,7]
[327371991,1716027048015,-151.0,0.000359,7]
[327371992,1716027048024,-1381.199649,0.000359,7]
[327371993,1716027048033,-343.398027,0.000359,7]
[327371994,1716027048043,-343.398027,0.000359,7]
[327371995,1716027048052,-151.0,0.000359,7]
[327371996,1716027048061,-328.52393,0.000359,7]
[327371997,1716027048071,-151.0,0.000359,7]
[327371998,1716027048080,-932.675204,0.000359,7]
[327371999,1716027048095,-328.52393,0.000359,7]
[327372000,1716027048105,-151.0,0.000359,7]
[327372001,1716027048115,-151.0,0.000359,7]
[327372002,1716027048126,-196.46888,0.000359,7]
[327372003,1716027048137,-932.675204,0.000359,7]
[327372004,1716027048146,-157.663853,0.000359,7]
[327372005,1716027048156,-151.0,0.000359,7]
[327372006,1716027048168,-151.0,0.000359,7]
[327372007,1716027048178,-196.46888,0.000359,7]
[327372008,1716027048187,-290.141817,0.000359,7]
[327372009,1716027048196,-151.0,0.000359,7]
[327372010,1716027048206,-151.0,0.000359,7]
[327372011,1716027048215,-275.024972,0.000359,7]
[327372012,1716027048224,-275.024972,0.000359,7]
[327372013,1716027048233,-151.0,0.000359,7]
[327372014,1716027048242,-151.0,0.000359,7]
[327372015,1716027048251,-151.0,0.000359,2]
[327372016,1716027048260,-151.0,0.000359,7]
[327372017,1716027048270,-151.0,0.000359,7]
[327372018,1716027048280,-151.0,0.000359,7]
[327372019,1716027048289,-270.180676,0.000359,7]
[327372020,1716027048298,-270.180676,0.000359,7]
[327372021,1716027048307,-151.295525,0.000359,7]
[327372022,1716027048316,-153.589833,0.000359,7]
[327372023,1716027048325,-151.0,0.000359,7]
[327372024,1716027048335,-151.0,0.000359,7]
[327372025,1716027048346,-668.18510086,0.00036064,2]
[327372026,1716027048355,-3163.0855683,0.00036161,2]
[327372027,1716027048365,-500.0,0.00036163,9]
[327372028,1716027048374,-463.50503321,0.00036163,9]
[327372029,1716027048384,-1152.06,0.00036163,9]
[327372030,1716027048394,-500.0,0.00036163,9]
[327372031,1716027048403,-500.0,0.00036163,9]
[327372032,1716027048412,-108945.41084348,0.00036164,27]
[327372033,1716027048432,-124223.78301179,0.00036164,27]
[327372034,1716027048529,-1893.23,0.00036164,27]
[327372035,1716027048540,-250.88068151,0.00036164,27]
[327372036,1716027048551,-31090.26631584,0.00036164,27]
[327372037,1716027048885,-523.392,0.00035606,10]
[327372038,1716027048896,-282.408,0.00035606,10]
[327372039,1716027048905,-4737.26219031,0.00036164,27]
[327372040,1716027049004,-20246.45899222,0.00036164,27]
[327372041,1716027049015,-455.34,0.00036164,27]
[327372042,1716027049026,-10982.71340834,0.00036164,27]
[327372043,1716027049038,-6550.58244479,0.00036164,27]
[327372044,1716027049052,-1213.75737996,0.00036164,27]
[327372045,1716027049064,-527.8589524,0.00036164,27]
[327372046,1716027049075,-11590.4789,0.00036164,27]
[327372047,1716027049091,-579.45888,0.00036164,27]
[327372048,1716027049102,-1007.59137853,0.00036164,27]
[327372049,1716027049114,-880.188012,0.00036164,27]
[327372050,1716027049126,-512.0,0.00036164,27]
[327372051,1716027049137,-3239.71161728,0.00036164,27]
[327372052,1716027049148,-486.71674462,0.00036164,27]
[327372053,1716027049159,-374.56443819,0.00036164,27]
[327372054,1716027049172,-263.66000001,0.00036164,27]
[327372055,1716027049657,-307253.92764807,0.00036164,27]
[327372056,1716027049666,-500.0,0.00036164,9]
[327372057,1716027049675,-500.0,0.00036164,9]
[327372058,1716027049686,-500.0,0.00036164,9]
[327372059,1716027049695,-3858.95,0.00036164,9]
[327372060,1716027049706,-4277.41811671,0.00036164,9]
[327372061,1716027049717,-960.49188329,0.00036164,9]
[327372062,1716027049726,-500.0,0.00036164,9]
[327372063,1716027049735,-500.0,0.00036164,9]
[327372064,1716027049744,-500.0,0.00036164,9]
[327372065,1716027049754,-500.0,0.00036164,9]
[327372066,1716027049763,-500.0,0.00036164,9]
[327372067,1716027049772,-500.0,0.00036164,9]
[327372068,1716027049782,-541.0,0.00036164,9]
[327372069,1716027049791,-525.08,0.00036164,9]
[327372070,1716027049800,-701.67,0.00036164,9]
[327372071,1716027049809,-500.0,0.00036164,9]
[327372072,1716027049818,-500.0,0.00036164,9]
[327372073,1716027049828,-500.0,0.00036164,9]
[327372074,1716027049837,-500.0,0.00036164,9]
[327372075,1716027049846,-500.0,0.00036164,9]
[327372076,1716027049855,-3615.35,0.00036164,9]
[327372077,1716027049864,-500.0,0.00036164,9]
[327372078,1716027049873,-500.0,0.00036164,9]
[327372079,1716027049883,-500.0,0.00036164,9]
[327372080,1716027049891,-500.0,0.00036164,9]
[327372081,1716027049900,-762.31,0.00036164,9]
[327372082,1716027049909,-543.4,0.00036164,7]
[327372083,1716027049918,-500.0,0.00036164,9]
[327372084,1716027049928,-500.0,0.00036164,9]
[327372085,1716027049937,-500.0,0.00036164,9]
[327372086,1716027049947,-500.0,0.00036164,9]
[327372087,1716027049956,-500.0,0.00036164,9]
[327372088,1716027049964,-500.0,0.00036164,9]
[327372089,1716027049974,-724.11,0.00036164,9]
[327372090,1716027049983,-500.0,0.00036164,9]
[327372091,1716027049992,-808.58,0.00036164,9]
[327372092,1716027050001,-500.0,0.00036164,9]
[327372093,1716027050010,-500.0,0.00036164,9]
[327372094,1716027050019,-500.0,0.00036164,9]
[327372095,1716027050028,-500.0,0.00036164,9]
[327372096,1716027050037,-500.0,0.00036164,9]
[327372097,1716027050046,-500.0,0.00036164,9]
[327372098,1716027050055,-500.0,0.00036164,9]
[327372099,1716027050064,-500.0,0.00036164,9]
[327372100,1716027050075,-500.0,0.00036164,9]
[327372101,1716027050086,-269.19499491,0.00036164,9]
[327372102,1716027050098,-527.77626679,0.00036164,9]
[327372103,1716027050107,-500.0,0.00036164,9]
[327372104,1716027050282,-631.73,0.00036164,9]
[327372105,1716027050296,-500.0,0.00036164,9]
[327372106,1716027050305,-579.25,0.00036164,9]
[327372107,1716027050314,-500.0,0.00036164,9]
[327372108,1716027050323,-500.0,0.00036164,9]
[327372109,1716027050333,-500.0,0.00036164,9]
[327372110,1716027050342,-500.0,0.00036164,9]
[327372111,1716027050351,-565.14,0.00036164,9]
[327372112,1716027050360,-500.0,0.00036164,9]
[327372113,1716027050369,-500.0,0.00036164,9]
[327372114,1716027050378,-500.0,0.00036164,9]
[327372115,1716027050387,-715.53,0.00036164,9]
[327372116,1716027050396,-500.0,0.00036164,9]
[327372117,1716027050405,-500.0,0.00036164,9]
[327372118,1716027050414,-500.0,0.00036164,9]
[327372119,1716027050423,-500.0,0.00036164,9]
[327372120,1716027050434,-500.0,0.00036164,9]
[327372121,1716027050443,-500.0,0.00036164,9]
[327372122,1716027050452,-522.99,0.00036164,9]
[327372123,1716027050461,-500.0,0.00036164,9]
[327372124,1716027050470,-500.0,0.00036164,9]
[327372125,1716027050479,-381.7143329,0.00036164,9]
[327372126,1716027050488,-500.0,0.00036164,9]
[327372127,1716027050498,-500.0,0.00036164,9]
[327372128,1716027050507,-500.0,0.00036164,9]
[327372129,1716027050516,-500.0,0.00036164,9]
[327372130,1716027050525,-523.23088932,0.00036164,9]
[327372131,1716027050534,-500.0,0.00036164,9]
[327372132,1716027050544,-500.0,0.00036164,9]
[327372133,1716027050553,-500.0,0.00036164,9]
[327372134,1716027050562,-500.0,0.00036164,9]
[327372135,1716027050572,-500.0,0.00036164,9]
[327372136,1716027050581,-500.0,0.00036164,9]
[327372137,1716027050591,-739.25,0.00036164,9]
[327372138,1716027050600,-500.0,0.00036164,9]
[327372139,1716027050609,-500.0,0.00036164,9]
[327372140,1716027050618,-500.0,0.00036164,9]
[327372141,1716027050628,-551.72378023,0.00036164,9]
[327372142,1716027050637,-500.0,0.00036164,9]
[327372143,1716027050646,-804.77,0.00036164,9]
[327372144,1716027050655,-500.0,0.00036164,9]
[327372145,1716027050666,-150.0,0.00036164,9]
[327372146,1716027050674,-987.86,0.00036164,9]
[327372147,1716027050684,-500.0,0.00036164,9]
[327372148,1716027050693,-728.7,0.00036164,9]
[327372149,1716027050701,-500.0,0.00036164,9]
[327372150,1716027050710,-2308.42,0.00036164,9]
[327372151,1716027050719,-486.76120264,0.00036164,9]
[327372152,1716027050727,-500.0,0.00036164,9]
[327372153,1716027050736,-581.62,0.00036164,9]
[327372154,1716027050745,-500.0,0.00036164,9]
[327372155,1716027050755,-500.0,0.00036164,9]
[327372156,1716027050765,-500.0,0.00036164,9]
[327372157,1716027050774,-500.0,0.00036164,9]
[327372158,1716027050783,-152.92616219,0.00036164,9]
[327372159,1716027050792,-500.0,0.00036164,9]
[327372160,1716027050801,-500.0,0.00036164,9]
[327372161,1716027050811,-4169.76,0.00036164,9]
[327372162,1716027050820,-500.0,0.00036164,9]
[327372163,1716027050829,-2844.7,0.00036164,9]
[327372164,1716027050838,-500.0,0.00036164,9]
[327372165,1716027050847,-500.0,0.00036164,9]
[327372166,1716027050856,-500.0,0.00036164,9]
[327372167,1716027050865,-500.0,0.00036164,9]
[327372168,1716027050875,-500.0,0.00036164,9]
[327372169,1716027050883,-500.0,0.00036164,9]
[327372170,1716027050893,-500.0,0.00036164,9]
[327372171,1716027050902,-500.0,0.00036164,9]
[327372172,1716027050910,-500.0,0.00036164,9]
[327372173,1716027050919,-500.0,0.00036164,9]
[327372174,1716027050929,-1269.4,0.00036164,9]
[327372175,1716027050938,-500.0,0.00036164,9]
[327372176,1716027050947,-500.0,0.00036164,9]
[327372177,1716027050956,-500.0,0.00036164,9]
[327372178,1716027050965,-500.0,0.00036164,9]
[327372179,1716027050974,-500.0,0.00036164,9]
[327372180,1716027050983,-500.0,0.00036164,9]
[327372181,1716027050993,-500.0,0.00036164,9]
[327372182,1716027051002,-500.0,0.00036164,9]
[327372183,1716027051011,-3069.88,0.00036164,9]
[327372184,1716027051021,-500.0,0.00036164,9]
[327372185,1716027051030,-500.0,0.00036164,9]
[327372186,1716027051040,-535.06,0.00036164,9]
[327372187,1716027051049,-500.0,0.00036164,9]
[327372188,1716027051058,-540.41,0.00036164,9]
[327372189,1716027051067,-500.0,0.00036164,9]
[327372190,1716027051076,-4030.13,0.00036164,9]
[327372191,1716027051088,-509.64533714,0.00036164,9]
[327372192,1716027051097,-500.0,0.00036164,9]
[327372193,1716027051106,-646.59,0.00036164,9]
[327372194,1716027051115,-500.0,0.00036164,9]
[327372195,1716027051124,-500.0,0.00036164,9]
[327372196,1716027051135,-509.31370548,0.00036164,9]
[327372197,1716027051144,-500.0,0.00036164,9]
[327372198,1716027051153,-682.05,0.00036164,9]
[327372199,1716027051164,-500.0,0.00036164,9]
[327372200,1716027051173,-500.0,0.00036164,9]
[327372201,1716027051183,-500.0,0.00036164,9]
[327372202,1716027051192,-500.0,0.00036164,9]
[327372203,1716027051201,-500.0,0.00036164,9]
[327372204,1716027051210,-500.0,0.00036164,9]
[327372205,1716027051219,-500.0,0.00036164,9]
[327372206,1716027051228,-500.0,0.00036164,9]
[327372207,1716027051237,-3657.87,0.00036164,9]
[327372208,1716027051246,-500.0,0.00036164,9]
[327372209,1716027051256,-500.0,0.00036164,9]
[327372210,1716027051265,-500.0,0.00036164,9]
[327372211,1716027051274,-538.12139756,0.00036164,9]
[327372212,1716027051283,-500.0,0.00036164,9]
[327372213,1716027051291,-4403.65,0.00036164,9]
[327372214,1716027051301,-500.0,0.00036164,9]
[327372215,1716027051310,-500.0,0.00036164,9]
[327372216,1716027051319,-3279.76,0.00036164,9]
[327372217,1716027051328,-500.0,0.00036164,9]
[327372218,1716027051337,-500.0,0.00036164,9]
[327372219,1716027051346,-500.0,0.00036164,9]
[327372220,1716027051354,-500.0,0.00036164,9]
[327372221,1716027051363,-500.0,0.00036164,9]
[327372222,1716027051372,-500.0,0.00036164,9]
[327372223,1716027051381,-500.0,0.00036164,9]
[327372224,1716027051390,-500.0,0.00036164,9]
[327372225,1716027051399,-500.0,0.00036164,9]
[327372226,1716027051407,-500.0,0.00036164,9]
[327372227,1716027051416,-3229.76,0.00036164,9]
[327372228,1716027051425,-500.0,0.00036164,9]
[327372229,1716027051434,-500.0,0.00036164,9]
[327372230,1716027051443,-500.0,0.00036164,9]
[327372231,1716027051453,-500.0,0.00036164,9]
[327372232,1716027051462,-500.0,0.00036164,9]
[327372233,1716027051471,-500.0,0.00036164,9]
[327372234,1716027051480,-500.0,0.00036164,9]
[327372235,1716027051489,-500.0,0.00036164,9]
[327372236,1716027051498,-500.0,0.00036164,9]
[327372237,1716027051507,-574.36,0.00036164,9]
[327372238,1716027051516,-500.0,0.00036164,9]